bitfinex/quotes_SOLUSD_20250419
["timestamp","ask_amount","ask_price","bid_price","bid_amount"]
[1745100503295,7.78194454,138.72,138.71,1e-08]
[1745100504992,14.99071039,138.72,138.71,1e-08]
[1745100514111,26.0,138.7,138.67,0.063]
[1745100514311,52.4315934,138.71,138.67,0.063]
[1745100514726,18.64964886,138.69,138.67,0.063]
[1745100516315,7.21084511,138.68,138.67,0.063]
[1745100529922,25.86049397,138.68,138.67,0.063]
[1745100540654,7.21032518,138.69,138.67,0.063]
[1745100555462,7.21032518,138.69,138.67,7.84494454]
[1745100555662,18.02190712,138.73,138.68,9.33304454]
[1745100555965,7.20876585,138.72,138.7,7.78194454]
[1745100556352,82.4,138.71,138.7,7.78194454]
[1745100556565,7.20846101,138.73,138.7,7.78194454]
[1745100556863,7.20846101,138.73,138.72,7.78194454]
[1745100557754,7.20846101,138.73,138.71,7.78194454]
[1745100558462,89.60796156,138.74,138.71,7.78194454]
[1745100558645,89.60796156,138.74,138.72,7.78194454]
[1745100570464,7.2066878,138.76,138.73,7.78194454]
[1745100570668,7.2066878,138.76,138.74,7.78194454]
[1745100571583,82.463,138.77,138.75,7.78194454]
[1745100573189,82.463,138.77,138.76,7.78194454]
[1745100573481,0.063,138.77,138.76,7.78194454]
[1745100574386,7.26916848,138.77,138.76,7.78194454]
[1745100575187,0.063,138.77,138.76,7.78194454]
[1745100575570,0.063,138.77,138.75,7.78194454]
[1745100575790,0.063,138.77,138.76,7.78194454]
[1745100577971,0.063,138.77,138.75,7.78194454]
[1745100580686,0.063,138.77,138.72,5.94885594]
[1745100580992,0.063,138.77,138.72,1.6237]
[1745100581193,0.063,138.77,138.73,7.78194454]
[1745100582991,0.063,138.77,138.74,7.78194454]
[1745100584491,7.2066878,138.76,138.74,7.78194454]
[1745100591702,7.2066878,138.76,138.72,1.6237]
[1745100592004,7.2066878,138.76,138.74,7.78194454]
[1745100601615,7.2066878,138.76,138.72,9.40564454]
[1745100633432,7.2066878,138.76,138.74,7.78194454]
[1745100645641,7.2066878,138.76,138.75,7.78194454]
[1745100649279,7.2066878,138.76,138.74,7.78194454]
[1745100680965,89.6066878,138.76,138.69,3.6050123]
[1745100681169,89.6066878,138.76,138.72,7.78194454]
[1745100681366,82.4,138.75,138.72,7.78194454]
[1745100683368,7.20772668,138.74,138.72,7.78194454]
[1745100689559,7.20772668,138.74,138.71,7.78194454]
[1745100689960,25.22704338,138.74,138.71,7.78194454]
[1745100691582,82.4,138.73,138.71,7.78194454]
[1745100692981,7.20876585,138.72,138.71,7.78194454]
[1745100695883,89.60876585,138.72,138.71,7.78194454]
[1745100701876,89.60876585,138.72,138.68,0.03]
[1745100701877,89.60876585,138.72,138.7,7.78194454]
[1745100704083,89.60876585,138.72,138.71,7.78194454]
[1745100704583,7.20876585,138.72,138.68,0.03]
[1745100704889,7.20876585,138.72,138.71,7.78194454]
[1745100706492,7.20824623,138.73,138.71,7.78194454]
[1745100706685,7.20824623,138.73,138.72,7.78194454]
[1745100708077,7.20824623,138.73,138.71,7.78194454]
[1745100713393,7.20824623,138.73,138.7,7.78194454]
[1745100720691,7.20824623,138.73,138.71,7.78194454]
[1745100721802,7.20824623,138.73,138.72,7.78194454]
[1745100721989,89.6079653,138.74,138.72,7.78194454]
[1745100722180,89.6079653,138.74,138.73,7.78194454]
[1745100726601,7.2066878,138.76,138.73,7.78194454]
[1745100726804,7.26931033,138.77,138.75,7.78194454]
[1745100726991,7.26931033,138.77,138.76,7.78194454]
[1745100728412,0.063,138.77,138.76,7.78194454]
[1745100766240,0.063,138.77,138.72,67.62643552]
[1745100766539,0.063,138.77,138.76,7.78194454]
[1745100783763,0.063,138.77,138.75,7.78194454]
[1745100784257,0.063,138.77,138.76,7.78194454]
[1745100837811,0.063,138.77,138.75,7.78194454]
[1745100838200,0.063,138.77,138.76,7.78194454]
[1745100838907,0.063,138.77,138.75,7.78194454]
[1745100839222,0.063,138.77,138.76,7.78194454]
[1745100880252,0.063,138.78,138.76,12.10595722]
[1745100880456,0.063,138.78,138.77,7.78194454]
[1745100882759,0.063,138.78,138.77,12.10564562]
[1745100888444,0.063,138.8,138.77,30.75529448]
[1745100888646,0.063,138.8,138.79,7.78194454]
[1745100889063,0.063,138.8,138.79,38.9097227]
[1745100889763,0.063,138.8,138.79,43.23280073]
[1745100889946,0.063,138.82,138.79,43.23280073]
[1745100890149,0.063,138.82,138.81,7.78194454]
[1745100972941,0.063,138.84,138.81,30.75404855]
[1745100973133,0.063,138.85,138.83,7.78194454]
[1745100973319,0.063,138.85,138.84,7.78194454]
[1745100974437,0.063,138.86,138.84,7.78194454]
[1745100974638,0.063,138.86,138.85,7.78194454]
[1745100979716,0.063,138.86,138.8,36.98869832]
[1745100979937,0.063,138.86,138.85,7.78194454]
[1745101000846,0.063,138.88,138.85,12.10315447]
[1745101001037,0.063,138.88,138.86,7.78194454]
[1745101001948,0.063,138.88,138.86,12.10284328]
[1745101002127,0.03,138.89,138.87,38.9097227]
[1745101002451,0.03,138.89,138.88,38.9097227]
[1745101003951,0.063,138.9,138.88,43.22999919]
[1745101004158,0.063,138.9,138.89,7.78194454]
[1745101020356,26.063,138.9,138.89,7.78194454]
[1745101022968,108.463,138.9,138.89,7.78194454]
[1745101026367,82.463,138.9,138.89,7.78194454]
[1745101027361,0.063,138.9,138.89,7.78194454]
[1745101042879,0.063,138.9,138.88,12.10216694]
[1745101043596,0.063,138.9,138.88,43.2299451]
[1745101044891,0.063,138.9,138.88,12.10216694]
[1745101046493,0.063,138.9,138.88,7.78194454]
[1745101047693,0.063,138.9,138.88,12.10217322]
[1745101048176,0.063,138.9,138.88,7.78194454]
[1745101048491,0.063,138.9,138.88,26.0]
[1745101048687,0.063,138.9,138.89,7.78194454]
[1745101050390,6.6695,138.9,138.89,7.78194454]
[1745101050980,6.6695,138.9,138.88,7.78194454]
[1745101051892,89.0695,138.9,138.88,7.78194454]
[1745101052079,7.1999424,138.89,138.87,7.78194454]
[1745101053396,82.4,138.88,138.87,7.78194454]
[1745101055198,107.60161289,138.88,138.84,26.0]
[1745101055384,82.4,138.87,138.84,26.0]
[1745101055589,82.4,138.87,138.86,7.78194454]
[1745101057997,82.4,138.87,138.84,26.0]
[1745101058201,82.4,138.87,138.83,0.063]
[1745101058581,82.4,138.86,138.84,7.78194454]
[1745101059001,82.4,138.86,138.83,7.84494454]
[1745101059182,82.4,138.85,138.83,0.063]
[1745101059391,82.4,138.84,138.83,7.84494454]
[1745101060086,82.4,138.84,138.83,0.063]
[1745101062018,82.4,138.84,138.83,7.84494454]
[1745101062484,18.64964886,138.85,138.83,7.84494454]
[1745101063420,6.5852,138.86,138.84,7.78194454]
[1745101063588,6.5852,138.86,138.85,7.78194454]
[1745101064206,6.5852,138.86,138.83,0.063]
[1745101064410,6.5852,138.86,138.85,7.78194454]
[1745101064918,6.5852,138.86,138.83,0.063]
[1745101065205,6.5852,138.86,138.84,7.78194454]
[1745101065414,6.5852,138.86,138.83,0.063]
[1745101065702,6.5852,138.86,138.84,7.78194454]
[1745101068283,82.4,138.85,138.84,7.78194454]
[1745101068484,82.4,138.85,138.83,0.063]
[1745101069806,89.60201656,138.85,138.83,0.063]
[1745101069992,89.60201656,138.85,138.83,7.84494454]
[1745101071090,89.60201656,138.85,138.83,0.063]
[1745101071512,101.04964886,138.84,138.83,0.063]
[1745101077097,18.64964886,138.84,138.83,0.063]
[1745101077417,6.5852,138.86,138.83,7.84494454]
[1745101077600,6.5852,138.86,138.84,7.78194454]
[1745101077995,82.4,138.85,138.83,0.063]
[1745101078194,82.4,138.85,138.84,7.78194454]
[1745101083001,89.60055219,138.88,138.84,7.78194454]
[1745101083192,89.60055219,138.88,138.86,7.78194454]
[1745101084717,89.60055219,138.88,138.87,7.78194454]
[1745101086707,82.4,138.88,138.87,7.78194454]
[1745101088139,82.4,138.88,138.84,4.32138315]
[1745101088435,89.60052074,138.88,138.87,7.78194454]
[1745101089102,89.60052074,138.88,138.86,7.78194454]
[1745101091537,89.60052074,138.88,138.83,30.38472814]
[1745101091747,89.60052074,138.88,138.86,7.78194454]
[1745101095239,82.4,138.88,138.86,7.78194454]
[1745101096435,82.4,138.88,138.87,7.78194454]
[1745101097338,82.4,138.88,138.84,4.32142171]
[1745101097508,82.4,138.88,138.83,30.38474908]
[1745101097509,89.60061298,138.88,138.83,30.38474908]
[1745101097708,89.60061298,138.88,138.86,7.78194454]
[1745101098042,89.60061298,138.88,138.83,26.063]
[1745101098344,82.4,138.87,138.83,7.84494454]
[1745101098513,82.4,138.86,138.83,7.84494454]
[1745101099342,7.20201656,138.85,138.83,7.84494454]
[1745101099650,82.4,138.84,138.83,7.84494454]
[1745101100649,89.60253529,138.84,138.83,7.84494454]
[1745101106757,89.60253529,138.84,138.83,0.063]
[1745101109856,89.60253529,138.84,138.83,7.84494454]
[1745101114461,89.60253529,138.84,138.83,0.063]
[1745101115361,89.60253529,138.84,138.83,7.84494454]
[1745101126163,89.60253529,138.84,138.83,0.063]
[1745101158261,89.10253529,138.84,138.83,0.063]
[1745101159577,81.9,138.84,138.83,0.063]
[1745101160071,7.20203257,138.85,138.83,0.063]
[1745101160562,89.10173734,138.86,138.83,0.063]
[1745101160762,89.10173734,138.86,138.83,7.84494454]
[1745101161383,89.10173734,138.86,138.83,0.063]
[1745101162683,89.10173734,138.86,138.83,7.84494454]
[1745101176491,89.10173734,138.86,138.84,7.78194454]
[1745101178093,89.10173734,138.86,138.83,7.84494454]
[1745101193090,89.10173734,138.86,138.84,7.78194454]
[1745101193427,89.10173734,138.86,138.83,7.84494454]
[1745101198212,89.10173734,138.86,138.83,0.063]
[1745101198910,107.10548211,138.86,138.83,0.063]
[1745101199623,81.9,138.85,138.83,0.063]
[1745101200519,7.20253529,138.84,138.83,0.063]
[1745101201591,32.13328415,138.84,138.83,0.063]
[1745101202621,39.91522869,138.84,138.83,0.063]
[1745101208123,32.13328415,138.84,138.83,0.063]
[1745101218130,39.91522869,138.84,138.83,1e-08]
[1745101218346,39.91522869,138.84,138.82,1e-08]
[1745101218511,7.78194454,138.83,138.82,1e-08]
[1745101219011,44.64964886,138.8,138.79,0.063]
[1745101221111,51.85425981,138.8,138.79,0.063]
[1745101222534,59.63620435,138.8,138.79,0.063]
[1745101226241,59.63620435,138.8,138.79,1e-08]
[1745101226738,66.02260435,138.8,138.79,1e-08]
[1745101230358,66.02260435,138.8,138.78,1e-08]
[1745101230518,7.78194454,138.79,138.78,1e-08]
[1745101231226,14.98707459,138.79,138.78,1e-08]
[1745101236938,33.63672345,138.79,138.78,1e-08]
[1745101237252,25.85477891,138.79,138.78,1e-08]
[1745101237448,33.63672345,138.79,138.78,1e-08]
[1745101239533,26.0,138.76,138.75,0.063]
[1745101241454,33.2066878,138.76,138.75,0.063]
[1745101241837,7.2066878,138.76,138.75,0.063]
[1745101242156,33.2066878,138.76,138.75,0.063]
[1745101244944,51.85633666,138.76,138.75,0.063]
[1745101245145,59.6382812,138.76,138.75,0.063]
[1745101245759,51.85633666,138.76,138.75,0.063]
[1745101247562,59.6382812,138.76,138.75,0.063]
[1745101247859,73.6582812,138.76,138.75,0.063]
[1745101248168,18.64964886,138.75,138.74,0.03]
[1745101248346,101.04964886,138.75,138.74,0.03]
[1745101248865,108.8315934,138.75,138.74,0.03]
[1745101249464,101.04964886,138.75,138.74,0.03]
[1745101250968,108.25685606,138.75,138.74,0.03]
[1745101253044,25.85685606,138.75,138.74,0.03]
[1745101260999,7.2072072,138.75,138.74,7.81194454]
[1745101267286,7.2072072,138.75,138.74,0.03]
[1745101268583,7.20513005,138.79,138.74,7.81194454]
[1745101268767,7.20513005,138.79,138.75,7.78194454]
[1745101268971,108.4,138.78,138.75,7.78194454]
[1745101269171,108.4,138.78,138.74,7.81194454]
[1745101269882,7.20616848,138.77,138.74,7.81194454]
[1745101271170,7.20616848,138.77,138.75,7.78194454]
[1745101275787,7.20616848,138.77,138.74,7.81194454]
[1745101276289,7.20616848,138.77,138.75,7.78194454]
[1745101281390,7.20616848,138.77,138.74,7.81194454]
[1745101284571,7.20616848,138.77,138.75,7.78194454]
[1745101287192,26.0,138.75,138.74,0.03]
[1745101289677,33.2072072,138.75,138.74,0.03]
[1745101308802,33.2072072,138.75,138.74,7.81194454]
[1745101309314,7.2072072,138.75,138.74,7.81194454]
[1745101310017,89.60679688,138.76,138.74,7.81194454]
[1745101310217,89.60679688,138.76,138.75,7.78194454]
[1745101313231,89.60679688,138.76,138.74,7.81194454]
[1745101313430,7.20638072,138.77,138.75,7.78194454]
[1745101315043,7.20638072,138.77,138.74,7.81194454]
[1745101315539,7.20638072,138.77,138.75,7.78194454]
[1745101315727,7.20638072,138.77,138.76,7.78194454]
[1745101316247,26.0,138.77,138.76,7.78194454]
[1745101317323,33.20616848,138.77,138.76,7.78194454]
[1745101322847,33.20616848,138.77,138.75,7.78194454]
[1745101324426,33.20616848,138.77,138.74,0.03]
[1745101324625,33.20616848,138.77,138.76,7.78194454]
[1745101330356,33.20616848,138.77,138.75,7.78194454]
[1745101343877,7.20564922,138.78,138.75,7.78194454]
[1745101344074,82.463,138.81,138.77,7.78194454]
[1745101344257,0.063,138.81,138.8,7.78194454]
[1745101352887,0.063,138.81,138.78,7.78194454]
[1745101353085,0.063,138.81,138.77,7.78194454]
[1745101353382,82.463,138.81,138.77,7.78194454]
[1745101354978,7.20461095,138.8,138.77,7.78194454]
[1745101355881,33.20461095,138.8,138.77,7.78194454]
[1745101356068,51.21613832,138.8,138.77,7.78194454]
[1745101356778,51.21613832,138.8,138.76,7.78194454]
[1745101357092,60.64518286,138.8,138.74,7.81194454]
[1745101357284,82.4,138.79,138.74,7.81194454]
[1745101357481,90.18194454,138.78,138.74,0.03]
[1745101357680,33.78194454,138.77,138.74,0.03]
[1745101357881,116.18194454,138.77,138.74,0.03]
[1745101358187,108.4,138.77,138.74,0.03]
[1745101359294,7.2066878,138.76,138.74,0.03]
[1745101361674,89.6066878,138.76,138.74,0.03]
[1745101407450,82.4,138.76,138.75,7.78194454]
[1745101407938,7.20513005,138.79,138.75,7.78194454]
[1745101408115,7.20513005,138.79,138.77,7.78194454]
[1745101418449,7.20513005,138.79,138.76,7.78194454]
[1745101418623,7.20513005,138.79,138.77,7.78194454]
[1745101423453,7.20513005,138.79,138.76,7.78194454]
[1745101423651,32.99989972,138.79,138.74,7.81194454]
[1745101424360,7.78194454,138.77,138.74,0.03]
[1745101424545,90.18194454,138.76,138.74,0.03]
[1745101424863,82.4,138.75,138.74,0.03]
[1745101425561,7.78194454,138.76,138.74,0.03]
[1745101425736,64.98974886,138.77,138.74,0.03]
[1745101425737,14.98915174,138.75,138.74,0.03]
[1745101428257,7.2072072,138.75,138.74,0.03]
[1745101434277,25.85633666,138.76,138.74,0.03]
[1745101438664,7.2066878,138.76,138.74,0.03]
[1745101438871,7.2066878,138.76,138.74,7.81194454]
[1745101439072,89.6066878,138.76,138.74,7.81194454]
[1745101439363,89.6066878,138.76,138.75,7.78194454]
[1745101440576,82.4,138.76,138.75,7.78194454]
[1745101443766,7.20637376,138.77,138.75,7.78194454]
[1745101443969,7.20637376,138.77,138.76,7.78194454]
[1745101444759,7.20637376,138.77,138.74,0.03]
[1745101444974,7.20637376,138.77,138.75,7.78194454]
[1745101445975,7.20637376,138.77,138.74,7.81194454]
[1745101446576,7.20637376,138.77,138.75,7.78194454]
[1745101451680,7.20637376,138.77,138.74,7.81194454]
[1745101457487,7.20637376,138.77,138.75,7.78194454]
[1745101458988,7.20637376,138.77,138.74,0.03]
[1745101459174,7.20637376,138.77,138.75,7.78194454]
[1745101459374,7.20637376,138.77,138.74,7.81194454]
[1745101472389,7.20637376,138.77,138.75,7.78194454]
[1745101479981,7.20637376,138.77,138.74,7.81194454]
[1745101501715,7.20637376,138.77,138.75,7.78194454]
[1745101502818,7.20637376,138.77,138.74,0.03]
[1745101503019,7.20637376,138.77,138.75,7.78194454]
[1745101503395,7.20637376,138.77,138.74,0.03]
[1745101503601,7.20637376,138.77,138.74,7.81194454]
[1745101507625,7.20637376,138.77,138.75,7.78194454]
[1745101510720,82.4,138.78,138.76,7.78194454]
[1745101511023,82.4,138.78,138.77,7.78194454]
[1745101511223,7.20545748,138.79,138.77,7.78194454]
[1745101511414,7.20545748,138.79,138.78,7.78194454]
[1745101533158,89.60484202,138.8,138.78,7.78194454]
[1745101533357,89.60484202,138.8,138.79,7.78194454]
[1745101534438,89.60484202,138.8,138.78,7.78194454]
[1745101552376,82.4,138.8,138.78,7.78194454]
[1745101552673,0.063,138.81,138.79,7.78194454]
[1745101552866,0.063,138.81,138.8,7.78194454]
[1745101567378,0.063,138.81,138.8,43.23248927]
[1745101568079,0.063,138.81,138.8,48.83799508]
[1745101569371,0.063,138.81,138.8,43.23248927]
[1745101571363,0.063,138.81,138.8,46.76157694]
[1745101572760,0.063,138.81,138.8,52.57482165]
[1745101573078,0.063,138.81,138.8,49.04573398]
[1745101573271,0.063,138.81,138.8,43.23248927]
[1745101575064,0.063,138.81,138.8,46.75089342]
[1745101578168,0.063,138.81,138.8,52.54420427]
[1745101578363,0.063,138.81,138.8,71.19385313]
[1745101578569,0.063,138.83,138.82,26.0]
[1745101578778,0.063,138.83,138.82,33.78194454]
[1745101580688,0.063,138.83,138.82,38.10408832]
[1745101591888,0.063,138.83,138.82,56.75373718]
[1745101595191,0.03,138.85,138.83,18.64964886]
[1745101595376,0.03,138.85,138.84,7.78194454]
[1745101596797,0.03,138.85,138.84,12.10346571]
[1745101599383,0.03,138.85,138.84,30.75311457]
[1745101599588,0.063,138.86,138.85,26.0]
[1745101599800,0.063,138.86,138.85,33.78194454]
[1745101602704,0.063,138.86,138.85,38.10315447]
[1745101608387,0.063,138.86,138.85,56.75280333]
[1745101611719,0.063,138.86,138.85,48.97085879]
[1745101611904,0.063,138.86,138.85,56.75280333]
[1745101622425,0.063,138.86,138.8,3.51840415]
[1745101622606,0.063,138.86,138.84,7.78194454]
[1745101623310,0.063,138.86,138.83,26.0]
[1745101623625,0.063,138.86,138.84,7.78194454]
[1745101627323,0.063,138.86,138.83,26.0]
[1745101627830,7.7528,138.86,138.84,7.78194454]
[1745101629133,7.20201656,138.85,138.84,7.78194454]
[1745101630212,7.20201656,138.85,138.83,26.0]
[1745101630417,7.20201656,138.85,138.82,7.78194454]
[1745101631331,7.20201656,138.85,138.83,7.78194454]
[1745101635444,7.20201656,138.85,138.81,26.0]
[1745101635637,7.20201656,138.85,138.83,7.78194454]
[1745101636538,7.20201656,138.85,138.84,7.78194454]
[1745101643650,7.20201656,138.85,138.81,26.0]
[1745101643945,7.20201656,138.85,138.84,7.78194454]
[1745101647246,7.20201656,138.85,138.83,7.78194454]
[1745101649343,7.20201656,138.85,138.81,26.0]
[1745101649549,7.20201656,138.85,138.83,7.78194454]
[1745101650047,7.20201656,138.85,138.81,26.0]
[1745101650248,7.20201656,138.85,138.83,7.78194454]
[1745101677172,7.20201656,138.85,138.82,7.78194454]
[1745101677657,25.20705797,138.85,138.79,0.063]
[1745101678069,25.20705797,138.85,138.81,7.78194454]
[1745101681277,82.4,138.84,138.81,7.78194454]
[1745101682085,7.20305409,138.83,138.81,7.78194454]
[1745101684486,7.20305409,138.83,138.82,7.78194454]
[1745101684681,89.60270272,138.84,138.82,7.78194454]
[1745101684883,89.60270272,138.84,138.83,7.78194454]
[1745101685490,82.4,138.84,138.83,7.78194454]
[1745101685795,0.063,138.86,138.83,7.78194454]
[1745101685975,0.063,138.86,138.85,7.78194454]
[1745101693901,0.063,138.86,138.81,1.5318]
[1745101694096,0.063,138.86,138.84,7.78194454]
[1745101699803,0.063,138.86,138.85,7.78194454]
[1745101703215,0.063,138.86,138.84,7.78194454]
[1745101704503,0.063,138.86,138.85,7.78194454]
[1745101705520,0.063,138.86,138.83,26.0]
[1745101705721,0.063,138.86,138.85,7.78194454]
[1745101709428,0.063,138.86,138.84,7.78194454]
[1745101713628,0.063,138.86,138.85,7.78194454]
[1745101722431,0.063,138.86,138.84,7.78194454]
[1745101731418,0.063,138.86,138.85,7.78194454]
[1745101763171,0.063,138.86,138.84,7.78194454]
[1745101763477,0.063,138.86,138.83,7.78194454]
[1745101763676,0.063,138.86,138.84,7.78194454]
[1745101766379,7.26449791,138.86,138.84,7.78194454]
[1745101770162,25.26824268,138.86,138.84,7.78194454]
[1745101771586,25.26824268,138.86,138.85,7.78194454]
[1745101783500,25.26824268,138.86,138.84,7.78194454]
[1745101792714,25.26824268,138.86,138.83,7.78194454]
[1745101792928,25.26824268,138.86,138.81,1.5318]
[1745101793091,25.26824268,138.86,138.79,51.04424886]
[1745101793092,82.4,138.85,138.79,0.063]
[1745101793506,82.4,138.85,138.81,7.78194454]
[1745101793815,82.4,138.85,138.8,7.78194454]
[1745101794031,82.4,138.85,138.81,7.78194454]
[1745101794735,25.20887352,138.84,138.81,7.78194454]
[1745101798424,25.20887352,138.84,138.79,0.063]
[1745101798934,25.20887352,138.84,138.81,7.78194454]
[1745101804615,7.20357297,138.82,138.81,7.78194454]
[1745101805917,25.2125054,138.82,138.79,7.84494454]
[1745101810351,82.4,138.81,138.79,7.84494454]
[1745101811857,7.20461095,138.8,138.79,7.84494454]
[1745101837077,7.20461095,138.8,138.79,0.063]
[1745101883004,7.20461095,138.8,138.79,7.84494454]
[1745101884222,7.20461095,138.8,138.79,0.063]
[1745101886931,18.00893243,138.82,138.79,0.063]
[1745101888635,18.00893243,138.82,138.79,7.84494454]
[1745101889308,18.00893243,138.82,138.79,0.063]
[1745101891812,25.2125054,138.82,138.79,0.063]
[1745101896045,18.00893243,138.82,138.79,0.063]
[1745101908638,25.79087697,138.82,138.79,0.063]
[1745101909523,32.99444994,138.82,138.79,0.063]
[1745101912947,25.2125054,138.82,138.79,0.063]
[1745101928839,26.0,138.8,138.79,0.063]
[1745101930378,33.20461095,138.8,138.79,0.063]
[1745101931474,7.20461095,138.8,138.79,0.063]
[1745101933378,7.20409192,138.81,138.79,0.063]
[1745101935971,28.80409192,138.81,138.79,0.063]
[1745101936178,7.20409192,138.81,138.79,0.063]
[1745101943279,7.20409192,138.81,138.79,7.84494454]
[1745101943584,7.20305409,138.83,138.8,7.78194454]
[1745101943775,7.20305409,138.83,138.81,7.78194454]
[1745101949081,33.20253529,138.84,138.81,7.78194454]
[1745101952788,7.20253529,138.84,138.81,7.78194454]
[1745101952995,33.20201656,138.85,138.81,7.78194454]
[1745101956890,7.20201656,138.85,138.81,7.78194454]
[1745101957497,7.20201656,138.85,138.82,7.78194454]
[1745101958066,0.063,138.86,138.82,7.78194454]
[1745101958299,25.26824268,138.86,138.82,7.78194454]
[1745101961804,7.26449791,138.86,138.85,7.78194454]
[1745101962478,0.063,138.86,138.85,7.78194454]
[1745101962673,0.063,138.86,138.84,7.78194454]
[1745101965395,0.063,138.86,138.85,7.78194454]
[1745101987817,0.063,138.86,138.85,11.38295282]
[1745101990632,0.063,138.89,138.85,11.38295282]
[1745101990826,0.03,138.91,138.9,26.0]
[1745101991024,0.03,138.92,138.91,26.0]
[1745101991345,0.03,138.92,138.91,33.78194454]
[1745101992738,0.03,138.92,138.91,37.38139742]
[1745101993038,0.03,138.93,138.91,37.38139742]
[1745101993213,0.03,138.93,138.92,7.78194454]
[1745101994140,0.03,138.97,138.94,26.0]
[1745101994344,0.03,138.97,138.96,7.78194454]
[1745101995121,0.03,138.97,138.96,26.4315934]
[1745101995442,0.03,138.99,138.98,26.0]
[1745101995641,0.03,138.99,138.98,33.78194454]
[1745101996436,0.03,138.99,138.98,52.4315934]
[1745101999238,0.09329762,138.99,138.98,52.4315934]
[1745102001039,0.03,139.0,138.99,18.64964886]
[1745102001242,0.03,139.05,139.02,26.0]
[1745102001462,0.03,139.05,139.04,7.78194454]
[1745102001672,0.03,139.05,139.04,34.21353794]
[1745102001848,82.4,139.1,139.09,7.78194454]
[1745102002164,7.1880391,139.12,139.09,7.78194454]
[1745102002352,7.1880391,139.12,139.1,7.78194454]
[1745102003059,7.1880391,139.12,139.09,7.78194454]
[1745102003250,7.1880391,139.12,139.1,7.78194454]
[1745102003651,7.1880391,139.12,139.09,7.78194454]
[1745102004045,25.15813685,139.12,139.09,7.78194454]
[1745102004254,25.15813685,139.12,139.02,20.0]
[1745102004464,82.4,139.11,139.06,26.0]
[1745102004654,82.4,139.11,139.07,7.78194454]
[1745102005276,25.16175412,139.1,139.07,7.78194454]
[1745102006267,25.16175412,139.1,139.08,7.78194454]
[1745102010870,25.16175412,139.1,139.07,7.78194454]
[1745102011688,25.16175412,139.1,139.08,7.78194454]
[1745102011867,25.16175412,139.1,139.07,7.78194454]
[1745102016380,25.16175412,139.1,139.08,7.78194454]
[1745102017185,25.16175412,139.1,139.09,7.78194454]
[1745102017879,7.1890726,139.1,139.09,7.78194454]
[1745102023993,7.1890726,139.1,139.08,26.0]
[1745102024283,7.1890726,139.1,139.09,7.78194454]
[1745102025196,89.58867403,139.11,139.09,7.78194454]
[1745102025490,89.58867403,139.11,139.1,7.78194454]
[1745102027594,7.18752246,139.13,139.1,7.78194454]
[1745102028897,7.18752246,139.13,139.11,7.78194454]
[1745102029098,7.18665909,139.15,139.12,7.78194454]
[1745102029389,7.18665909,139.15,139.14,7.78194454]
[1745102029580,0.03,139.16,139.14,7.78194454]
[1745102029894,0.03,139.16,139.15,7.78194454]
[1745102033592,0.03,139.16,139.15,33.78194454]
[1745102036286,0.03,139.16,139.15,35.28304454]
[1745102036494,0.03,139.16,139.15,39.59493817]
[1745102036673,0.03,139.16,139.15,35.28304454]
[1745102037300,0.03,139.16,139.15,39.59493817]
[1745102038279,0.03,139.16,139.15,53.47493817]
[1745102040601,0.03,139.16,139.15,72.12458703]
[1745102042184,0.03,139.16,139.15,38.09383817]
[1745102042387,0.03,139.16,139.15,26.0]
[1745102042586,0.03,139.16,139.15,33.78194454]
[1745102044798,2.21805546,139.15,139.12,49.3004589]
[1745102044987,2.21805546,139.15,139.14,7.78194454]
[1745102046993,9.40454485,139.15,139.14,7.78194454]
[1745102054805,2.21805546,139.15,139.14,7.78194454]
[1745102059110,2.21805546,139.15,139.14,0.78194454]
[1745102067822,2.21805546,139.15,139.14,26.78194454]
[1745102075104,9.40454485,139.15,139.14,26.78194454]
[1745102075305,10.14628395,139.15,139.14,24.56388908]
[1745102076227,10.14628395,139.15,139.14,7.78194454]
[1745102108880,10.14628395,139.15,139.1,26.0]
[1745102109181,10.14628395,139.15,139.12,7.78194454]
[1745102109382,28.11250744,139.15,139.12,7.78194454]
[1745102109762,28.11250744,139.15,139.08,5.18034053]